[Event "IIFL Wealth 4th Mumbai GM"]
[Site "Mumbai"]
[Date "2019.01.02"]
[Round "4"]
[White "Varga, Klara"]
[Black "Chowdhury, Sohel"]
[Result "1-0"]
[ECO "A11"]
[WhiteElo "2242"]
[BlackElo "2012"]
[Annotator "NA"]
[PlyCount "67"]
[EventDate "2018.12.30"]
[EventType "swiss"]
[EventCountry "IND"]
[SourceTitle "playchess.com"]
[Source "ChessBase"]
[SourceQuality "1"]
[TimeControl "40/5400+30:1800+30"]

1. c4 {[%emt 0:00:00]} c6 {[%emt 0:00:00]} 2. Nf3 {[%emt 0:00:00]} d5 {[%emt 0:00:00]} 3. e3 {[%emt 0:00:00]} Nf6 {[%emt 0:00:05]} 4. Nc3 {[%emt 0:00:00]} e6 {[%emt 0:00:42]} 5. b3 {[%emt 0:00:00]} Bb4 {[%emt 0:00:50] A11: English Opening: 1...c6} (5... Bd6 6. Bb2 O-O 7. d4 Nbd7 8. Be2 b6 9. O-O Bb7 10. h3 Qe7 11. Rc1 Rfe8 12. Qc2 Rac8 13. Rfd1 h6 14. Qb1 Bb4 15. Qa1 Bd6 16. Bd3 {1-0 (47) Andreikin,D (2712)-Jakovenko,D (2747) Satka 2018}) 6. Bb2 {[%emt 0:00:07]} O-O {[%emt 0:00:15]} 7. Qc2 {[%emt 0:00:18]} a5 $146 {[%emt 0:00:09]} ({Predecessor:} 7... Nbd7 8. a3 Bd6 9. d4 b6 10. e4 Nxe4 11. Nxe4 dxe4 12. Qxe4 Bb7 13. Bd3 Nf6 {1-0 (24) Chekhov,V (2500)-Kiselev,S (2495) Moscow 1995}) 8. Bd3 {[%emt 0:03:49]} Nbd7 {[%emt 0:01:23]} 9. Na4 {[%emt 0:01:50]} Bd6 {[%emt 0:03:54]} 10. g4 {[%emt 0:08:44]} dxc4 {[%emt 0:06:48]} 11. bxc4 {[%emt 0:00:22]} g6 {[%emt 0:01:05]} 12. h4 {[%emt 0:04:38]} Nxg4 {[%emt 0:06:29]} 13. h5 {[%emt 0:00:47]} Nde5 {[%emt 0:01:34]} 14. Be2 $2 {[%emt 0:07:31]} (14. Nxe5 $18 Nxe5 15. Be4) 14... Nxf3+ {[%emt 0:04:35]} 15. Bxf3 {[%emt 0:00:02]} e5 {[%emt 0:00:30]} 16. c5 {[%emt 0:00:55]} Bc7 {[%emt 0:01:07]} 17. hxg6 {[%emt 0:01:56]} hxg6 {[%emt 0:01:03]} 18. Nb6 {[%emt 0:02:18]} Qf6 {[%emt 0:12:32]} 19. Qe4 {[%emt 0:09:53]} Bf5 {[%emt 0:02:11]} 20. Qa4 {[%emt 0:00:15]} Bxb6 {[%emt 0:25:24]} 21. cxb6 {[%emt 0:00:03]} Nxf2 {[%emt 0:13:46]} 22. Kxf2 {[%emt 0:00:07]} Rad8 {[%emt 0:00:04]} 23. Bc3 {[%emt 0:00:37]} Rd4 $2 {[%emt 0:00:50] [#]} (23... Kg7 24. Rag1 Rfe8 25. Qxa5 Be4) 24. Qxd4 $18 {[%emt 0:01:57]} exd4 {[%emt 0:04:25]} 25. Bxd4 {[%emt 0:00:02]} Qxd4 {[%emt 0:01:35]} 26. exd4 {[%emt 0:00:02]} Rd8 {[%emt 0:00:02]} 27. Rh4 {[%emt 0:01:16]} g5 {[%emt 0:01:08]} 28. Rg1 {[%emt 0:00:08]} f6 {[%emt 0:00:02]} 29. Rf4 {[%emt 0:00:08]} Bg6 {[%emt 0:01:23]} 30. Rxf6 {[%emt 0:00:06]} Kg7 {[%emt 0:00:01]} 31. Re6 {[%emt 0:00:26]} Kf7 {[%emt 0:01:03]} 32. Re5 {[%emt 0:00:35]} Rxd4 {[%emt 0:00:05]} 33. Rexg5 {[%emt 0:00:09]} Rxd2+ {[%emt 0:00:42]} 34. Ke3 {[%emt 0:00:18]} 1-0

[Event "IIFL Wealth 4th Mumbai GM"]
[Site "Mumbai"]
[Date "2019.01.02"]
[Round "4"]
[White "Wagh Suyog"]
[Black "Shyaamnikhil P"]
[Result "0-1"]
[ECO "A20"]
[WhiteElo "2240"]
[BlackElo "2448"]
[Annotator "NA RC"]
[PlyCount "83"]
[EventDate "2018.12.30"]
[EventType "swiss"]
[EventCountry "IND"]
[SourceTitle "playchess.com"]
[Source "ChessBase"]
[SourceQuality "1"]
[TimeControl "40/5400+30:1800+30"]

1. c4 {[%emt 0:00:00]} e5 {[%emt 0:00:00]} 2. g3 {[%emt 0:01:59]} h5 {[%emt 0:04:01]} 3. h4 {[%emt 0:04:42]} c6 {[%emt 0:04:08]} 4. Bg2 {[%emt 0:00:29]} Nf6 {[%emt 0:00:39]} 5. d4 {[%emt 0:16:01]} Bb4+ {[%emt 0:08:58]} 6. Nc3 {[%emt 0:18:39]} d6 {[%emt 0:02:31]} 7. dxe5 {[%emt 0:03:33]} dxe5 {[%emt 0:01:49]} 8. Qc2 {[%emt 0:00:22]} Ng4 {[%emt 0:04:59]} 9. e3 {[%emt 0:12:50]} ({White should play} 9. Nf3 $14) 9... Be6 {[%emt 0:08:34]} 10. a3 {[%emt 0:01:44]} Be7 {[%emt 0:09:43]} 11. Ne4 {[%emt 0:03:35]} f5 {[%emt 0:02:20]} 12. Ng5 {[%emt 0:00:17]} Bxg5 {[%emt 0:00:26]} 13. hxg5 {[%emt 0:00:02]} Qxg5 {[%emt 0:00:50]} 14. e4 {[%emt 0:00:24]} Qf6 {[%emt 0:04:23]} 15. f3 Nh6 {[%emt 0:00:43]} 16. Rxh5 {[%emt 0:06:05]} Nd7 {[%emt 0:00:45]} 17. exf5 {[%emt 0:06:48]} Bxf5 {[%emt 0:00:38]} 18. Qc3 $15 {[%emt 0:00:58]} Qf7 {[%emt 0:09:16]} 19. Rh4 {[%emt 0:03:32]} O-O-O {[%emt 0:03:50]} 20. Be3 {[%emt 0:01:38]} Nb6 {[%emt 0:03:47]} 21. Bf1 {[%emt 0:02:30]} Qg6 {[%emt 0:02:38]} 22. Bf2 {[%emt 0:00:10]} e4 {[%emt 0:02:05]} 23. fxe4 {[%emt 0:03:37]} Bxe4 {[%emt 0:02:01]} 24. Bh3+ {[%emt 0:03:03]} Bf5 {[%emt 0:00:52]} 25. Bxf5+ {[%emt 0:00:20]} Qxf5 {[%emt 0:01:48]} 26. Rf4 {[%emt 0:00:03]} Qh5 {[%emt 0:03:29]} 27. Qxg7 {[%emt 0:02:26]} Rhg8 {[%emt 0:01:21]} 28. Qh7 {[%emt 0:02:09]} Rd7 {[%emt 0:01:38]} 29. Qc2 {[%emt 0:00:17]} Ng4 {[%emt 0:02:13]} 30. Qf5 {[%emt 0:00:55]} Re8+ {[%emt 0:01:53]} 31. Kf1 {[%emt 0:00:25]} Qxf5 {[%emt 0:01:05]} 32. Rxf5 {[%emt 0:00:01]} Nxc4 {[%emt 0:01:22]} 33. Rf4 {[%emt 0:05:15]} Nge3+ {[%emt 0:04:14]} 34. Bxe3 {[%emt 0:00:01]} Nxe3+ {[%emt 0:00:07]} 35. Kf2 {[%emt 0:00:09]} Rd2+ {[%emt 0:00:51]} 36. Kf3 {[%emt 0:00:14]} Nd5 {[%emt 0:00:23]} 37. Rf7 {[%emt 0:00:10]} Rxb2 {[%emt 0:00:35]} 38. Nh3 {[%emt 0:00:32]} Rb3+ {[%emt 0:00:37]} 39. Kg4 {[%emt 0:00:17]} Rg8+ {[%emt 0:01:10]} 40. Ng5 {[%emt 0:00:00]} Ne3+ {[%emt 0:00:00]} 41. Kh4 {[%emt 0:03:38]} Rb5 {[%emt 0:02:18]} 42. Nh7 0-1

[Event "IIFL Wealth 4th Mumbai GM"]
[Site "Mumbai"]
[Date "2019.01.02"]
[Round "4"]
[White "Prraneeth Vuppala"]
[Black "Triton, Maxime"]
[Result "1-0"]
[ECO "A56"]
[WhiteElo "2228"]
[BlackElo "1937"]
[Annotator "NA"]
[PlyCount "89"]
[EventDate "2018.12.30"]
[EventType "swiss"]
[EventCountry "IND"]
[SourceTitle "playchess.com"]
[Source "ChessBase"]
[SourceQuality "1"]
[TimeControl "40/5400+30:1800+30"]

1. d4 {[%emt 0:01:42]} Nf6 {[%emt 0:00:00]} 2. c4 {[%emt 0:00:46]} c5 {[%emt 0:00:00]} 3. d5 {[%emt 0:00:03]} e5 {[%emt 0:00:04]} 4. Nc3 {[%emt 0:00:54]} d6 {[%emt 0:00:12]} 5. e4 {[%emt 0:00:48]} Be7 {[%emt 0:00:13]} 6. Bd3 {[%emt 0:01:36]} Nbd7 {[%emt 0:00:34]} 7. Nge2 {[%emt 0:00:41]} Nf8 {[%emt 0:03:10]} 8. a3 {[%emt 0:11:17] A56: Czech Benoni} (8. Ng3 Ng6 9. Nf5 O-O 10. Qf3 Re8 11. O-O h6 12. g3 Nh7 13. h4 Bf6 14. Nb5 Bxf5 15. exf5 e4 16. Bxe4 {1-0 (35) Wagner,D (2572)-Czebe,A (2474) Zalakaros 2015}) 8... Ng6 {[%emt 0:01:06]} 9. b4 {[%emt 0:00:39]} b6 {[%emt 0:01:53]} 10. O-O {[%emt 0:04:29]} O-O {[%emt 0:00:28]} 11. Ng3 $146 {[%emt 0:01:49]} ({Predecessor:} 11. Bd2 Nh5 12. Qc1 Bf6 13. Ra2 Nhf4 14. Bb1 Qd7 15. f3 Bg5 16. Ng3 {1-0 (30) De Blecourt,S (2075)-Liu,C (1898) Ballerup 2018}) 11... Ne8 {[%emt 0:10:31]} 12. Nf5 {[%emt 0:13:13]} Bg5 {[%emt 0:06:38]} 13. Bb2 {[%emt 0:02:22]} Nf4 {[%emt 0:04:20]} 14. Bc2 {[%emt 0:00:23]} g6 {[%emt 0:08:48]} 15. Ne3 {[%emt 0:00:29]} Ng7 {[%emt 0:02:55]} 16. Ne2 {[%emt 0:05:24]} f5 {[%emt 0:07:31]} 17. exf5 {[%emt 0:06:25]} Nxf5 {[%emt 0:05:26]} 18. Nxf5 Bxf5 {[%emt 0:01:33]} 19. Ng3 {[%emt 0:01:52]} Bxc2 {[%emt 0:02:16]} 20. Qxc2 {[%emt 0:00:02]} Rf7 {[%emt 0:03:05]} 21. Ne4 {[%emt 0:02:32]} Bh6 {[%emt 0:08:33]} 22. Rae1 {[%emt 0:16:52]} Qd7 {[%emt 0:04:47]} 23. g3 {[%emt 0:06:28]} Nh3+ {[%emt 0:02:27]} 24. Kg2 {[%emt 0:00:54]} Ng5 {[%emt 0:02:27]} 25. Nxg5 {[%emt 0:03:18]} Bxg5 {[%emt 0:00:05]} 26. b5 {[%emt 0:00:48]} Raf8 {[%emt 0:01:40]} 27. f3 {[%emt 0:00:12]} Rf5 {[%emt 0:02:22]} 28. Qc3 {[%emt 0:01:37]} Bf6 {[%emt 0:02:40]} 29. Qc2 {[%emt 0:00:56]} Bg5 {[%emt 0:00:14]} 30. a4 {[%emt 0:01:01]} Qf7 {[%emt 0:05:05]} 31. Qe4 {[%emt 0:00:59]} Bd2 {[%emt 0:05:15]} 32. Re2 {[%emt 0:00:54]} Bg5 {[%emt 0:00:13]} 33. Bc3 {[%emt 0:03:21]} Bd8 {[%emt 0:01:03]} 34. Bd2 {[%emt 0:00:37]} Qe7 {[%emt 0:03:47]} 35. Bh6 {[%emt 0:04:43]} Re8 {[%emt 0:02:27]} 36. h4 {[%emt 0:00:03]} Qd7 {[%emt 0:01:43]} 37. f4 {[%emt 0:02:17]} Rh5 {[%emt 0:00:58]} 38. Bg5 {[%emt 0:00:02]} Qg4 {[%emt 0:01:39]} 39. Bxd8 {[%emt 0:05:57]} Rxd8 {[%emt 0:00:11]} 40. fxe5 {[%emt 0:00:00]} Qxe4+ {[%emt 0:00:00]} 41. Rxe4 {[%emt 0:00:03]} Rxe5 {[%emt 0:06:07]} 42. Rxe5 {[%emt 0:00:09]} dxe5 {[%emt 0:00:02]} 43. Rf6 {[%emt 0:00:08]} Re8 {[%emt 0:04:56]} 44. Kf3 {[%emt 0:01:57]} Kg7 $18 {[%emt 0:04:34]} 45. Rc6 {[%emt 0:00:03]} 1-0

[Event "IIFL Wealth 4th Mumbai GM"]
[Site "Mumbai"]
[Date "2019.01.02"]
[Round "4"]
[White "Senthil Maran K"]
[Black "Arya Nirag Shah"]
[Result "1-0"]
[ECO "A15"]
[WhiteElo "2197"]
[BlackElo "1812"]
[Annotator "NA"]
[PlyCount "119"]
[EventDate "2018.12.30"]
[EventType "swiss"]
[EventCountry "IND"]
[SourceTitle "playchess.com"]
[Source "ChessBase"]
[SourceQuality "1"]
[TimeControl "40/5400+30:1800+30"]

1. c4 {[%emt 0:10:20]} Nf6 {[%emt 0:00:00]} 2. Nf3 {[%emt 0:00:22]} Nc6 {[%emt 0:00:15]} 3. d4 {[%emt 0:00:13]} e6 {[%emt 0:00:08]} 4. Nc3 {[%emt 0:01:01]} Bb4 {[%emt 0:00:21]} 5. Bd2 {[%emt 0:00:27]} O-O {[%emt 0:01:00]} 6. e3 {[%emt 0:00:29]} d6 {[%emt 0:02:15]} 7. a3 {[%emt 0:01:51]} Bxc3 {[%emt 0:00:16]} 8. Bxc3 {[%emt 0:00:01]} Ne4 {[%emt 0:03:58]} 9. Qc2 {[%emt 0:01:05]} Nxc3 {[%emt 0:00:19]} 10. Qxc3 {[%emt 0:00:03]} a5 {[%emt 0:02:49]} 11. Be2 {[%emt 0:03:00]} Qe7 {[%emt 0:02:41]} 12. d5 {[%emt 0:01:21]} Nb8 {[%emt 0:01:38]} 13. O-O {[%emt 0:02:34]} e5 {[%emt 0:00:53]} 14. c5 {[%emt 0:00:49]} Bg4 {[%emt 0:07:03]} 15. Rac1 {[%emt 0:03:40]} dxc5 {[%emt 0:27:39]} 16. Qxc5 $16 {[%emt 0:00:57]} Qxc5 {[%emt 0:00:25]} 17. Rxc5 {[%emt 0:00:12]} c6 {[%emt 0:04:33]} 18. dxc6 {[%emt 0:01:13]} Nxc6 {[%emt 0:00:23]} 19. h3 {[%emt 0:00:28]} Bxf3 {[%emt 0:05:25]} 20. Bxf3 {[%emt 0:00:04]} f6 {[%emt 0:00:18]} 21. Bd5+ {[%emt 0:00:36]} Kh8 {[%emt 0:00:11]} 22. Rfc1 {[%emt 0:01:57]} Rab8 {[%emt 0:04:27]} 23. R1c2 {[%emt 0:01:45]} Rfc8 {[%emt 0:05:50]} 24. Bxc6 {[%emt 0:03:31]} bxc6 {[%emt 0:00:38]} 25. Rxa5 {[%emt 0:00:15]} Kg8 {[%emt 0:00:26]} 26. Rac5 {[%emt 0:00:02]} Rb6 {[%emt 0:00:04]} 27. b4 {[%emt 0:01:21]} Ra8 {[%emt 0:00:42]} 28. Rxc6 {[%emt 0:00:33]} Rxc6 {[%emt 0:00:17]} 29. Rxc6 {[%emt 0:00:02]} Rxa3 {[%emt 0:00:07]} 30. g4 {[%emt 0:00:23]} Rb3 {[%emt 0:00:09]} 31. Rb6 {[%emt 0:00:39]} g6 {[%emt 0:01:12]} 32. Rb7 {[%emt 0:00:30]} f5 {[%emt 0:00:27]} 33. gxf5 {[%emt 0:00:28]} gxf5 {[%emt 0:00:06]} 34. Kg2 {[%emt 0:00:05]} Kf8 {[%emt 0:03:01]} 35. Kg3 {[%emt 0:01:18]} f4+ {[%emt 0:02:56]} 36. Kf3 {[%emt 0:00:08]} fxe3 {[%emt 0:00:46]} 37. fxe3 {[%emt 0:00:02]} h6 {[%emt 0:03:06]} 38. b5 {[%emt 0:00:11]} Ke8 {[%emt 0:01:20]} 39. b6 {[%emt 0:00:07]} Kd8 {[%emt 0:00:13]} 40. Ke4 {[%emt 0:00:00]} Kc8 {[%emt 0:00:00]} 41. Rc7+ {[%emt 0:00:57]} Kd8 {[%emt 0:01:49]} 42. Rc6 {[%emt 0:00:09]} h5 {[%emt 0:01:57]} 43. Rh6 {[%emt 0:00:21]} Kc8 {[%emt 0:02:33]} 44. Rxh5 {[%emt 0:04:05]} Rxb6 {[%emt 0:00:14]} 45. Rh8+ {[%emt 0:00:07]} Kd7 {[%emt 0:00:26]} 46. Rh7+ {[%emt 0:00:02]} Ke8 {[%emt 0:00:44]} 47. Kxe5 {[%emt 0:00:07]} Rb5+ {[%emt 0:00:16]} 48. Kf4 {[%emt 0:00:07]} Rb4+ {[%emt 0:00:54]} 49. e4 {[%emt 0:00:02]} Rb5 {[%emt 0:00:23]} 50. e5 {[%emt 0:00:27]} Rb4+ {[%emt 0:00:48]} 51. Kf5 {[%emt 0:00:08]} Rb6 {[%emt 0:00:04]} 52. h4 {[%emt 0:00:08]} Ra6 {[%emt 0:00:32]} 53. h5 {[%emt 0:00:08]} Kf8 {[%emt 0:00:30]} 54. h6 {[%emt 0:00:21]} Kg8 {[%emt 0:00:15]} 55. Rg7+ {[%emt 0:00:06]} Kh8 {[%emt 0:01:24]} 56. Rg6 {[%emt 0:00:08]} Ra1 {[%emt 0:00:20]} 57. e6 {[%emt 0:00:14]} Rf1+ {[%emt 0:00:06]} 58. Ke5 {[%emt 0:00:06]} Kh7 {[%emt 0:00:27]} 59. Rg4 {[%emt 0:00:10]} Kxh6 {[%emt 0:00:11]} 60. e7 {[%emt 0:00:07]} 1-0

[Event "IIFL Wealth 4th Mumbai GM"]
[Site "Mumbai"]
[Date "2019.01.02"]
[Round "4"]
[White "Divya Deshmukh"]
[Black "Wahba, David George"]
[Result "1-0"]
[ECO "C28"]
[WhiteElo "2190"]
[BlackElo "1295"]
[Annotator "NA"]
[PlyCount "39"]
[EventDate "2018.12.30"]
[EventType "swiss"]
[EventCountry "IND"]
[SourceTitle "playchess.com"]
[Source "ChessBase"]
[SourceQuality "1"]
[TimeControl "40/5400+30:1800+30"]

1. e4 {[%emt 0:00:00]} e5 {[%emt 0:00:00]} 2. Nc3 {[%emt 0:01:06]} Nf6 {[%emt 0:00:00]} 3. Bc4 {[%emt 0:00:02]} Nc6 {[%emt 0:00:05]} 4. d3 {[%emt 0:00:10]} Be7 {[%emt 0:00:11]} 5. f4 {[%emt 0:02:02]} d6 6. f5 O-O {[%emt 0:01:50]} 7. Be3 {[%emt 0:00:46]} Na5 {[%emt 0:00:30]} 8. Qe2 {[%emt 0:00:57]} Nxc4 {[%emt 0:00:19]} 9. dxc4 {[%emt 0:00:04]} c6 10. O-O-O a5 {[%emt 0:02:09]} 11. g4 {[%emt 0:00:48]} h6 {[%emt 0:00:13]} 12. h4 {[%emt 0:00:13]} Nd7 13. Nf3 {[%emt 0:00:08]} f6 {[%emt 0:01:35]} 14. g5 {[%emt 0:00:16]} fxg5 {[%emt 0:00:25]} 15. hxg5 {[%emt 0:00:03]} hxg5 {[%emt 0:00:11]} 16. Qh2 {[%emt 0:00:08]} a4 17. Qh7+ {[%emt 0:00:30]} Kf7 {[%emt 0:35:22]} 18. Qg6+ {[%emt 0:00:08]} Kg8 {[%emt 0:01:24]} 19. Rh7 {[%emt 0:00:11]} Bf6 {[%emt 0:01:56]} 20. Rdh1 {[%emt 0:00:06]} 1-0

[Event "IIFL Wealth 4th Mumbai GM"]
[Site "Mumbai"]
[Date "2019.01.02"]
[Round "4"]
[White "Surendran N"]
[Black "Nayem, Haque"]
[Result "1-0"]
[ECO "A80"]
[WhiteElo "2176"]
[BlackElo "2083"]
[Annotator "NA"]
[PlyCount "34"]
[EventDate "2018.12.30"]
[EventType "swiss"]
[EventCountry "IND"]
[SourceTitle "playchess.com"]
[Source "ChessBase"]
[SourceQuality "1"]
[TimeControl "40/5400+30:1800+30"]

1. d4 {[%emt 0:09:25]} f5 {[%emt 0:00:00]} 2. Nf3 {[%emt 0:00:10]} Nf6 {[%emt 0:00:05]} 3. c4 {[%emt 0:00:04]} e6 {[%emt 0:00:15]} 4. g3 {[%emt 0:00:12]} Be7 {[%emt 0:00:31]} 5. Bg2 {[%emt 0:00:02]} c6 {[%emt 0:00:14]} 6. O-O {[%emt 0:00:08]} d5 {[%emt 0:00:02]} 7. Bg5 {[%emt 0:00:12]} O-O {[%emt 0:00:11]} 8. Nbd2 {[%emt 0:00:05]} Qe8 {[%emt 0:00:23]} 9. Ne5 {[%emt 0:02:57]} Ne4 {[%emt 0:00:15]} 10. Nd3 {[%emt 0:15:14]} Bd6 {[%emt 0:01:57]} 11. Nf3 {[%emt 0:09:34]} Qh5 {[%emt 0:02:35]} 12. Nfe5 {[%emt 0:00:17]} g6 {[%emt 0:02:57]} 13. Be3 g5 {[%emt 0:00:30]} 14. f3 {[%emt 0:03:34]} Nf6 {[%emt 0:00:35]} 15. Qd2 {[%emt 0:01:22]} h6 {[%emt 0:03:22]} 16. Rae1 {[%emt 0:01:41]} Rd8 {[%emt 0:05:13]} 17. Qc1 {[%emt 0:05:04]} a5 {[%emt 0:20:06]} 1-0

[Event "IIFL Wealth 4th Mumbai GM"]
[Site "Mumbai"]
[Date "2019.01.02"]
[Round "4"]
[White "Subrota, Biswas"]
[Black "Regmi, Shikhar"]
[Result "1-0"]
[ECO "A46"]
[WhiteElo "2171"]
[BlackElo "1610"]
[Annotator "NA"]
[PlyCount "55"]
[EventDate "2018.12.30"]
[EventType "swiss"]
[EventCountry "IND"]
[SourceTitle "playchess.com"]
[Source "ChessBase"]
[SourceQuality "1"]
[TimeControl "40/5400+30:1800+30"]

1. d4 {[%emt 0:00:52]} Nf6 {[%emt 0:01:20]} 2. Nf3 {[%emt 0:00:00]} d6 {[%emt 0:00:27]} 3. g3 {[%emt 0:00:42]} g6 {[%emt 0:00:21]} 4. Bg2 {[%emt 0:00:04]} Bg7 {[%emt 0:00:12]} 5. O-O {[%emt 0:00:04]} O-O {[%emt 0:00:09]} 6. c4 {[%emt 0:01:06]} Bg4 {[%emt 0:01:53]} 7. Nbd2 {[%emt 0:00:54]} Nc6 {[%emt 0:00:28]} 8. d5 {[%emt 0:01:29]} Nb8 {[%emt 0:00:36]} 9. h3 {[%emt 0:00:45]} Bd7 {[%emt 0:00:34]} 10. Ne1 {[%emt 0:16:21]} Qc8 {[%emt 0:01:14]} 11. Kh2 {[%emt 0:00:05]} Nh5 {[%emt 0:02:57]} 12. e4 {[%emt 0:02:15]} f5 {[%emt 0:00:24]} 13. exf5 {[%emt 0:00:46]} Rxf5 {[%emt 0:02:57]} 14. g4 {[%emt 0:00:17]} Be5+ {[%emt 0:01:37]} 15. Kg1 {[%emt 0:01:16]} Rg5 {[%emt 0:02:18]} 16. Ndf3 {[%emt 0:03:16]} Rxg4 {[%emt 0:00:56]} 17. hxg4 {[%emt 0:00:03]} Bxg4 {[%emt 0:00:11]} 18. Nd3 {[%emt 0:01:17]} Nd7 {[%emt 0:01:30]} 19. Ndxe5 {[%emt 0:02:57]} Nxe5 {[%emt 0:00:13]} 20. Qb3 {[%emt 0:00:01]} Nxf3+ {[%emt 0:03:07]} 21. Bxf3 {[%emt 0:01:21]} Qf5 {[%emt 0:00:16]} 22. Bg2 {[%emt 0:01:15]} Rf8 {[%emt 0:00:30]} 23. Bh6 {[%emt 0:00:03]} Nf4 {[%emt 0:01:40]} 24. Bxf4 {[%emt 0:00:13]} Qxf4 25. Rae1 {[%emt 0:00:20]} Rf5 {[%emt 0:00:18]} 26. Re4 {[%emt 0:00:18]} Qg5 {[%emt 0:00:35]} 27. Qg3 {[%emt 0:00:18]} h5 {[%emt 0:00:32]} 28. f3 {[%emt 0:00:12]} 1-0

[Event "IIFL Wealth 4th Mumbai GM"]
[Site "Mumbai"]
[Date "2019.01.02"]
[Round "4"]
[White "Nikhil Magizhnan"]
[Black "Kafle, Binod"]
[Result "1-0"]
[ECO "C44"]
[WhiteElo "2148"]
[BlackElo "1191"]
[Annotator "NA"]
[PlyCount "67"]
[EventDate "2018.12.30"]
[EventType "swiss"]
[EventCountry "IND"]
[SourceTitle "playchess.com"]
[Source "ChessBase"]
[SourceQuality "1"]
[TimeControl "40/5400+30:1800+30"]

1. e4 {[%emt 0:00:00]} e5 {[%emt 0:03:11]} 2. Nf3 {[%emt 0:00:00]} Nc6 {[%emt 0:00:25]} 3. d4 {[%emt 0:00:00]} Nxd4 {[%emt 0:01:20]} 4. Nxd4 {[%emt 0:00:00]} exd4 {[%emt 0:00:40]} 5. Qxd4 {[%emt 0:00:00]} d6 {[%emt 0:01:02]} 6. Nc3 {[%emt 0:00:10]} Be6 {[%emt 0:01:55]} 7. Be3 {[%emt 0:00:11]} a6 {[%emt 0:01:10]} 8. Be2 {[%emt 0:00:17]} Be7 {[%emt 0:01:00]} 9. Qxg7 {[%emt 0:00:43]} Bf6 {[%emt 0:00:34]} 10. Qg3 {[%emt 0:00:06]} Qe7 {[%emt 0:02:03]} 11. Rd1 {[%emt 0:00:48]} O-O-O {[%emt 0:01:42]} 12. O-O {[%emt 0:00:30]} Bh4 {[%emt 0:04:27]} 13. Qf4 {[%emt 0:00:32]} Bf6 {[%emt 0:03:08]} 14. Qf3 {[%emt 0:03:01]} Be5 {[%emt 0:02:10]} 15. Bf4 {[%emt 0:00:31]} Nf6 {[%emt 0:01:08]} 16. Bxe5 {[%emt 0:00:26]} dxe5 {[%emt 0:01:33]} 17. Nd5 {[%emt 0:00:34]} Nxd5 {[%emt 0:02:32]} 18. exd5 {[%emt 0:00:16]} Bd7 {[%emt 0:00:40]} 19. Qe3 {[%emt 0:00:17]} Kb8 {[%emt 0:04:24]} 20. c4 {[%emt 0:00:24]} f5 {[%emt 0:05:55]} 21. f4 {[%emt 0:00:57]} e4 {[%emt 0:05:54]} 22. c5 {[%emt 0:01:39]} Bb5 {[%emt 0:00:39]} 23. Bxb5 {[%emt 0:00:15]} axb5 24. b4 {[%emt 0:00:01]} c6 {[%emt 0:04:08]} 25. d6 {[%emt 0:00:12]} Qe6 {[%emt 0:01:24]} 26. Ra1 {[%emt 0:00:13]} Kc8 {[%emt 0:02:14]} 27. a4 {[%emt 0:00:27]} bxa4 {[%emt 0:00:50]} 28. Rxa4 {[%emt 0:00:11]} Kd7 {[%emt 0:00:24]} 29. Ra7 {[%emt 0:00:32]} Rb8 {[%emt 0:00:31]} 30. b5 {[%emt 0:00:10]} cxb5 {[%emt 0:01:23]} 31. c6+ {[%emt 0:00:30]} Kxc6 {[%emt 0:00:51]} 32. Rc1+ {[%emt 0:00:37]} Kxd6 {[%emt 0:00:30]} 33. Qc5+ {[%emt 0:00:12]} Kd7 {[%emt 0:00:15]} 34. Qc7+ {[%emt 0:00:05]} 1-0

[Event "IIFL Wealth 4th Mumbai GM"]
[Site "Mumbai"]
[Date "2019.01.02"]
[Round "4"]
[White "Saksham Rautela"]
[Black "Ziatdinov, Raset"]
[Result "1-0"]
[ECO "C68"]
[WhiteElo "2123"]
[BlackElo "2252"]
[Annotator "NA"]
[PlyCount "113"]
[EventDate "2018.12.30"]
[EventType "swiss"]
[EventCountry "IND"]
[SourceTitle "playchess.com"]
[Source "ChessBase"]
[SourceQuality "1"]
[TimeControl "40/5400+30:1800+30"]

1. e4 {[%emt 0:00:00]} e5 {[%emt 0:00:00]} 2. Nf3 {[%emt 0:00:00]} Nc6 {[%emt 0:00:00]} 3. Bb5 {[%emt 0:00:00]} a6 {[%emt 0:00:16]} 4. Bxc6 {[%emt 0:00:00]} dxc6 {[%emt 0:00:02]} 5. O-O {[%emt 0:00:02]} Bg4 {[%emt 0:01:51]} 6. h3 {[%emt 0:00:10]} Bxf3 {[%emt 0:00:10]} 7. Qxf3 {[%emt 0:00:03]} Ne7 {[%emt 0:00:14]} 8. d3 {[%emt 0:02:18] LiveBook: 3 Games C68: Ruy Lopez: Exchange Variation, sidelines} Ng6 {[%emt 0:00:06]} 9. Nd2 {[%emt 0:02:23]} b5 $146 {[%emt 0:01:05]} ({Predecessor:} 9... Bd6 10. Nc4 O-O 11. Qg3 f5 12. exf5 Rxf5 13. Qg4 Rf7 14. Bg5 Qf8 15. Rae1 Re8 {1-0 (26) Novikov,S (2536)-Lagno,K (2523) Moscow 2015}) 10. Rd1 {[%emt 0:04:09]} Bd6 {[%emt 0:00:34]} 11. Nf1 {[%emt 0:01:42]} O-O {[%emt 0:07:02]} 12. Ng3 {[%emt 0:00:17]} c5 {[%emt 0:00:30]} 13. Qg4 {[%emt 0:08:04]} Qh4 {[%emt 0:01:33]} 14. Qf3 {[%emt 0:10:19]} Ne7 {[%emt 0:03:42]} 15. Nf5 {[%emt 0:08:15]} Nxf5 {[%emt 0:00:09]} 16. Qxf5 {[%emt 0:00:12]} Qe7 {[%emt 0:03:14]} 17. Be3 {[%emt 0:03:10]} g6 {[%emt 0:00:49]} 18. Qg4 {[%emt 0:01:14]} Kh8 {[%emt 0:02:43]} 19. Bh6 {[%emt 0:03:47]} Rg8 {[%emt 0:00:03]} 20. f4 {[%emt 0:03:46]} f6 {[%emt 0:03:23]} 21. Rf1 {[%emt 0:05:11]} c4 {[%emt 0:09:00]} 22. Rad1 Rad8 {[%emt 0:02:59]} 23. Kh1 {[%emt 0:09:43]} cxd3 {[%emt 0:15:33]} 24. Rxd3 {[%emt 0:00:51]} exf4 {[%emt 0:04:09]} 25. Bxf4 {[%emt 0:00:34]} Be5 {[%emt 0:01:08]} 26. Bxe5 {[%emt 0:13:44]} Qxe5 {[%emt 0:00:13]} 27. Qf4 {[%emt 0:05:56]} Qxf4 {[%emt 0:04:19]} 28. Rxf4 {[%emt 0:00:01]} Rxd3 {[%emt 0:00:27]} 29. cxd3 {[%emt 0:00:01]} Kg7 {[%emt 0:00:11]} 30. Rf2 {[%emt 0:02:46]} c5 {[%emt 0:01:23]} 31. Rc2 {[%emt 0:02:32]} Rc8 {[%emt 0:01:26]} 32. Kg1 {[%emt 0:00:18]} Kf7 {[%emt 0:00:59]} 33. Kf2 {[%emt 0:02:33]} Ke6 {[%emt 0:00:13]} 34. b4 {[%emt 0:02:26]} Kd6 {[%emt 0:00:24]} 35. Ke3 {[%emt 0:01:42]} Rc6 {[%emt 0:02:33]} 36. Rf2 {[%emt 0:01:53]} Ke5 {[%emt 0:18:20]} 37. bxc5 {[%emt 0:01:23]} Rc8 {[%emt 0:00:57]} 38. Rb2 {[%emt 0:03:30]} f5 {[%emt 0:00:23]} 39. d4+ {[%emt 0:00:19]} Ke6 {[%emt 0:00:08]} 40. a4 {[%emt 0:00:00]} Rb8 {[%emt 0:00:00]} 41. axb5 {[%emt 0:04:39]} axb5 {[%emt 0:00:27]} 42. h4 {[%emt 0:03:11]} h6 {[%emt 0:06:05]} 43. h5 {[%emt 0:01:15]} gxh5 {[%emt 0:00:35]} 44. Rf2 {[%emt 0:00:47]} fxe4 {[%emt 0:01:51]} 45. Kxe4 {[%emt 0:00:01]} b4 {[%emt 0:00:16]} 46. d5+ {[%emt 0:00:10]} Ke7 {[%emt 0:00:53]} 47. Ke5 $18 {[%emt 0:15:29]} b3 {[%emt 0:00:14]} 48. d6+ {[%emt 0:00:30]} Kd7 {[%emt 0:00:25]} 49. Kd5 {[%emt 0:00:49]} b2 {[%emt 0:01:12]} 50. c6+ {[%emt 0:00:03]} Ke8 {[%emt 0:00:06]} 51. d7+ {[%emt 0:00:52]} Ke7 {[%emt 0:00:14]} 52. Re2+ {[%emt 0:00:04]} Kf7 {[%emt 0:00:07]} 53. Rxb2 {[%emt 0:00:16]} Rxb2 {[%emt 0:00:07]} 54. c7 {[%emt 0:00:03]} Rd2+ {[%emt 0:00:29]} 55. Kc6 {[%emt 0:00:37]} Ke7 {[%emt 0:01:11]} 56. c8=Q {[%emt 0:00:14]} Rc2+ {[%emt 0:01:11]} 57. Kb5 {[%emt 0:00:24]} 1-0